bitfinex/quotes_ETHUSD_20251217
["timestamp","ask_amount","ask_price","bid_price","bid_amount"]
[1765996551882,1.8556,2851.4,2850.2,2.35874434]
[1765996552089,1.8556,2851.0,2850.3,2.3273]
[1765996552403,2.31998023,2850.9,2850.3,2.3273]
[1765996552588,2.31998023,2850.9,2850.2,0.03144434]
[1765996552589,3.78070557,2851.3,2850.5,2.3273]
[1765996552769,3.50708896,2851.4,2850.7,2.3273]
[1765996552968,2.31998023,2851.3,2850.7,2.3273]
[1765996553372,1.8556,2851.2,2850.4,0.559]
[1765996553573,1.8556,2851.2,2850.4,2.8863]
[1765996554181,1.8556,2851.2,2850.5,3.50815646]
[1765996554495,1.8556,2851.1,2850.5,3.50815646]
[1765996554852,1.8556,2851.1,2850.4,2.8863]
[1765996554853,1.8556,2851.1,2850.4,6.39453095]
[1765996555354,1.8556,2851.1,2850.9,0.03144434]
[1765996556696,1.8556,2851.0,2850.9,4.434e-05]
[1765996557199,1.8556,2851.0,2850.7,0.03144434]
[1765996557370,4.0362,2851.0,2850.9,4.434e-05]
[1765996558297,2.1806,2851.2,2850.9,4.434e-05]
[1765996558496,1.8556,2851.1,2850.9,4.434e-05]
[1765996558795,3.97156163,2851.3,2850.9,4.434e-05]
[1765996558995,3.97156163,2851.3,2851.2,0.03144434]
[1765996558996,1.8556,2851.3,2851.2,0.03144434]
[1765996559180,5.82715239,2851.3,2851.2,0.03144434]
[1765996559578,8.00775239,2851.3,2851.2,0.03144434]
[1765996560107,1.8556,2851.1,2850.9,4.434e-05]
[1765996561505,2.42265405,2852.6,2850.9,4.434e-05]
[1765996561506,1.8566,2851.8,2850.9,2.88534434]
[1765996561800,5.3631677,2851.8,2851.6,0.03144434]
[1765996562003,0.001,2851.8,2851.6,0.03144434]
[1765996562210,7.01176002,2852.4,2851.7,2.3273]
[1765996562431,1.8556,2851.7,2851.2,0.03144434]
[1765996562700,4.0362,2851.5,2851.4,0.03144434]
[1765996562883,2.1806,2851.4,2851.2,4.434e-05]
[1765996563079,2.1806,2851.2,2850.9,0.00204434]
[1765996563293,1.8556,2851.1,2850.9,0.00204434]
[1765996563708,2.1806,2851.0,2850.7,0.03144434]
[1765996563893,1.8556,2850.9,2850.7,0.03144434]
[1765996564193,2.64498023,2851.8,2850.9,2.3273]
[1765996564398,1.8556,2851.5,2851.2,0.03144434]
[1765996564573,5.8269064,2851.5,2851.4,0.03144434]
[1765996564903,3.50669904,2851.7,2851.4,0.03144434]
[1765996564904,3.97111869,2851.7,2851.4,0.03144434]
[1765996565212,0.46438023,2851.8,2851.6,0.03144434]
[1765996565701,3.50632142,2852.0,2851.6,0.03144434]
[1765996565902,3.50632142,2852.0,2851.8,0.03144434]
[1765996566111,0.46438023,2851.9,2851.8,0.03144434]
[1765996566482,5.82641453,2851.9,2851.8,0.03144434]
[1765996566883,0.46438023,2851.9,2851.8,0.03144434]
[1765996567306,3.50628199,2852.1,2851.8,0.03144434]
[1765996567307,1.8556,2852.1,2851.8,0.03144434]
[1765996567507,1.8566,2852.5,2852.0,2.35874434]
[1765996567711,0.46438023,2852.4,2852.0,2.35874434]
[1765996567908,1.8566,2852.5,2852.0,2.35874434]
[1765996568085,0.46438023,2852.4,2852.0,2.35874434]
[1765996568484,1.8566,2852.5,2852.0,2.35874434]
[1765996568734,1.8566,2852.5,2852.2,0.03144434]
[1765996568735,5.36230744,2852.5,2852.2,0.03144434]
[1765996568885,0.46438023,2852.4,2852.2,0.03144434]
[1765996569413,2.46698023,2852.4,2852.2,0.03144434]
[1765996570612,2.0026,2852.3,2852.2,4.434e-05]
[1765996571117,1.4079686,2852.5,2852.2,4.434e-05]
[1765996571323,1.9349,2852.4,2852.2,4.434e-05]
[1765996572506,3.50618842,2852.1,2851.6,0.03144434]
[1765996572710,3.50618842,2852.1,2851.6,4.434e-05]
[1765996572711,2.3426,2851.9,2851.6,4.434e-05]
[1765996573023,2.3426,2851.7,2851.2,0.03144434]
[1765996573210,1.9349,2851.8,2850.9,0.002]
[1765996573211,2.36265,2851.6,2850.9,0.002]
[1765996573410,2.4929,2851.9,2850.9,0.002]
[1765996573620,2.4929,2851.9,2851.0,2.2995]
[1765996573821,2.4929,2851.9,2851.2,2.2995]
[1765996574209,2.4929,2851.9,2851.2,5.80677847]
[1765996574410,0.558,2852.0,2851.5,2.2995]
[1765996574919,5.90534682,2852.2,2851.5,2.2995]
[1765996574920,5.90535355,2852.2,2851.5,2.2995]
[1765996575151,1.9349,2852.1,2851.9,0.03144434]
[1765996575366,1.9349,2851.9,2851.7,0.03144434]
[1765996579541,1.9349,2851.9,2851.7,4.434e-05]
[1765996580465,1.9349,2851.8,2851.7,4.434e-05]
[1765996580630,4.2775,2851.8,2851.7,4.434e-05]
[1765996580961,4.2775,2851.8,2851.1,5.8382617]
[1765996580962,1.9349,2851.3,2851.1,0.03144434]
[1765996581959,1.9349,2851.6,2851.1,0.03144434]
[1765996582145,1.9349,2851.6,2851.3,4.434e-05]
[1765996582346,1.9349,2851.6,2851.5,0.03144434]
[1765996582573,0.558,2852.0,2851.5,0.03144434]
[1765996582574,0.001,2852.5,2851.5,2.88894434]
[1765996582773,2.40028023,2852.5,2852.1,0.03144434]
[1765996583355,3.97113254,2852.5,2852.1,0.03144434]
[1765996583577,1.9349,2852.4,2852.1,0.03144434]
[1765996583786,0.001,2852.5,2852.3,0.03144434]
[1765996585783,1.9349,2853.1,2852.4,2.2995]
[1765996585987,5.43967614,2853.3,2852.9,0.03144434]
[1765996586306,1.9349,2853.3,2852.9,0.03144434]
[1765996586470,3.50544014,2853.6,2852.9,2.33094434]
[1765996586471,0.001,2853.6,2852.9,2.33094434]
[1765996586793,0.001,2853.6,2853.1,2.2995]
[1765996586960,0.001,2853.6,2853.5,0.03144434]
[1765996587161,1.9359,2853.6,2853.5,4.434e-05]
[1765996587372,2.52655275,2853.6,2853.5,4.434e-05]
[1765996587777,0.59165275,2853.6,2853.5,4.434e-05]
[1765996587980,0.001,2853.6,2853.5,4.434e-05]
[1765996589190,0.001,2853.7,2853.5,2.29954434]
[1765996589388,1.9349,2854.2,2853.5,2.29954434]
[1765996589701,3.50481716,2854.1,2853.8,0.03144434]
[1765996589901,5.43971716,2854.1,2853.8,0.03144434]
[1765996590114,0.89433503,2854.0,2853.8,0.03144434]
[1765996590320,2.3426,2853.7,2853.5,4.434e-05]
[1765996590615,1.9349,2853.6,2853.5,4.434e-05]
[1765996590816,0.89433503,2854.0,2853.1,0.03144434]
[1765996590817,1.9349,2853.5,2853.1,0.03144434]
[1765996591017,4.2775,2853.2,2853.1,4.434e-05]
[1765996591202,1.9349,2853.1,2852.9,8.868e-05]
[1765996591701,2.3426,2852.9,2852.6,0.03144434]
[1765996591885,1.9349,2852.8,2852.7,0.03144434]
[1765996592307,1.9349,2853.0,2852.7,0.03144434]
[1765996592508,0.54398595,2852.9,2852.7,0.03144434]
[1765996592722,0.46438023,2853.3,2852.7,2.33094434]
[1765996593019,0.46438023,2853.3,2853.1,0.03144434]
[1765996593192,1.9349,2853.2,2853.1,4.434e-05]
[1765996593855,5.43973667,2853.2,2853.1,4.434e-05]
[1765996594611,1.9349,2853.2,2853.1,4.434e-05]
[1765996594812,0.56331055,2853.2,2853.1,4.434e-05]
[1765996595220,6.09739449,2853.4,2853.1,4.434e-05]
[1765996595616,2.12839,2853.4,2853.1,4.434e-05]
[1765996596035,0.001,2853.2,2853.1,4.434e-05]
[1765996596318,1.9359,2854.1,2853.3,2.33094434]
[1765996596517,1.9359,2854.1,2853.8,0.03144434]
[1765996596717,0.001,2854.1,2853.8,0.03144434]
[1765996597121,0.46438023,2854.0,2853.8,0.03144434]
[1765996597290,0.59040574,2853.9,2853.8,0.03144434]
[1765996597932,0.001,2854.1,2853.8,2.33094434]
[1765996598106,0.001,2854.5,2854.1,2.2995]
[1765996599401,7.0075168,2854.5,2854.2,0.03144434]
[1765996599601,7.0075168,2854.5,2853.8,0.03144434]
[1765996599602,1.9349,2854.1,2853.8,0.03144434]
[1765996599806,1.9349,2854.1,2854.0,0.03144434]
[1765996600027,2.36265,2854.1,2854.0,0.03144434]
[1765996600230,1.9349,2854.1,2854.0,0.03144434]
[1765996602331,3.50336322,2854.4,2853.9,0.03144434]
[1765996602544,1.9298,2854.3,2853.9,0.03144434]
[1765996602740,1.9298,2854.1,2853.9,0.03144434]
[1765996602910,0.42894,2854.1,2853.9,0.03144434]
[1765996603107,2.3596,2854.1,2853.9,0.03144434]
[1765996603310,2.3596,2854.3,2853.9,4.434e-05]
[1765996603520,1.9298,2854.2,2853.9,4.434e-05]
[1765996603727,11.07019441,2854.1,2853.4,0.03144434]
[1765996603923,1.9298,2853.7,2853.4,0.03144434]
[1765996604854,1.9298,2853.7,2853.1,2.2177]
[1765996605033,2.3596,2853.6,2852.5,0.03144434]
[1765996605244,2.3596,2853.6,2852.9,0.03144434]
[1765996605434,2.3596,2853.4,2852.9,0.03144434]
[1765996605634,1.9298,2853.0,2852.5,0.03144434]
[1765996606628,5.43489088,2853.0,2852.5,0.03144434]
[1765996607025,1.9298,2852.9,2852.7,4.434e-05]
[1765996607371,2.3596,2852.6,2852.1,0.03144434]
[1765996607536,4.2894,2852.4,2852.3,0.03144434]
[1765996607741,7.79521966,2852.4,2852.3,0.03144434]
[1765996607931,4.2894,2852.4,2852.3,0.03144434]
[1765996608131,1.9298,2852.4,2852.3,0.03144434]
[1765996608357,1.9298,2852.6,2852.3,0.03144434]
[1765996608552,1.9298,2852.4,2852.3,0.03144434]
[1765996609667,4.2894,2852.4,2852.3,0.03144434]
[1765996610025,1.9298,2852.4,2852.3,0.03144434]
[1765996610226,1.9298,2852.4,2852.1,0.03144434]
[1765996610466,1.9298,2852.4,2852.3,0.002]
[1765996610760,1.9298,2852.3,2852.1,4.434e-05]
[1765996610934,1.9298,2852.2,2852.1,4.434e-05]
[1765996611962,1.9298,2852.2,2851.9,4.434e-05]
[1765996611963,1.9298,2852.0,2851.9,4.434e-05]
[1765996612934,1.9298,2852.1,2851.9,4.434e-05]
[1765996613454,1.9298,2852.6,2852.0,2.2177]
[1765996613654,1.9298,2852.6,2852.5,4.434e-05]
[1765996614829,1.9298,2853.0,2852.5,2.21774434]
[1765996615069,1.9298,2853.1,2852.9,0.03144434]
[1765996615869,6.39,2853.9,2852.9,0.03144434]
[1765996615870,0.558,2853.4,2852.9,2.24914434]
[1765996616071,2.4878,2853.4,2853.3,4.434e-05]
[1765996616786,1.9298,2853.7,2853.3,4.434e-05]
[1765996617076,1.9298,2853.7,2853.5,0.03144434]
[1765996617231,0.19298,2853.7,2853.0,0.03144434]
[1765996617436,4.2894,2853.7,2853.2,0.03144434]
[1765996617634,2.3596,2853.7,2853.0,4.434e-05]
[1765996617832,1.9298,2853.5,2853.3,0.03144434]
[1765996618060,3.50392676,2854.0,2853.3,0.03144434]
[1765996618234,4.2894,2853.8,2853.3,0.03144434]
[1765996618434,1.9298,2853.5,2853.3,0.03144434]
[1765996618753,1.9298,2853.5,2853.3,4.434e-05]
[1765996618950,1.9298,2853.4,2853.3,4.434e-05]
[1765996620202,2.3596,2853.6,2853.3,4.434e-05]
[1765996620372,1.9298,2853.5,2853.3,4.434e-05]
[1765996621078,1.9298,2853.6,2853.3,4.434e-05]
[1765996621280,2.3596,2853.4,2853.0,4.434e-05]
[1765996621492,1.9298,2852.9,2852.7,0.03144434]
[1765996622072,1.9298,2852.9,2852.7,3.53688702]
[1765996622397,1.9298,2852.9,2852.7,0.03144434]
[1765996622606,1.9298,2852.9,2851.9,4.434e-05]
[1765996622807,1.9298,2852.6,2852.5,0.03144434]
[1765996622982,0.75098,2852.8,2851.9,4.434e-05]
[1765996623186,1.9298,2852.2,2851.5,0.03144434]
[1765996623385,1.9298,2852.1,2851.5,0.03144434]
[1765996623591,0.558,2852.3,2851.5,4.434e-05]
[1765996623592,1.9298,2851.7,2851.5,4.434e-05]
[1765996623920,1.9298,2851.7,2851.3,4.434e-05]
[1765996623921,2.3596,2851.5,2851.3,4.434e-05]
[1765996624078,1.9298,2851.4,2851.3,4.434e-05]
[1765996626312,1.9298,2851.7,2851.3,4.434e-05]
[1765996626485,1.9298,2851.7,2851.4,0.03144434]
[1765996626681,1.9298,2851.9,2851.6,0.03144434]
[1765996626887,0.558,2851.8,2851.6,0.03144434]
[1765996627485,2.3596,2851.6,2851.1,0.002]
[1765996627693,1.9298,2851.3,2850.9,0.03344434]
[1765996627894,1.9298,2851.3,2851.0,4.434e-05]
[1765996628108,1.9298,2851.2,2851.1,0.03144434]
[1765996628434,1.9298,2851.2,2850.9,0.03344434]
[1765996628723,1.9298,2851.2,2851.1,4.434e-05]
[1765996629322,1.9298,2851.4,2851.1,4.434e-05]
[1765996630099,0.77962044,2851.4,2851.1,4.434e-05]
[1765996630392,2.3174,2851.3,2851.1,4.434e-05]
[1765996630592,1.8958,2851.2,2851.1,4.434e-05]
[1765996631830,0.46538023,2852.0,2851.1,2.23054434]
[1765996632126,0.46438023,2851.9,2851.6,0.03144434]
[1765996632425,3.97174537,2852.0,2851.8,4.434e-05]
[1765996632622,1.9541,2851.9,2851.8,4.434e-05]
[1765996633024,0.001,2852.0,2851.8,4.434e-05]
[1765996633326,1.9551,2852.0,2851.8,4.434e-05]
[1765996633914,2.25284802,2852.0,2851.8,4.434e-05]
[1765996634332,1.9541,2851.8,2851.6,0.03144434]
[1765996634836,0.46538023,2852.0,2850.5,0.03144434]
[1765996634837,1.9541,2851.2,2850.5,0.03144434]
[1765996634996,1.9541,2851.1,2850.9,4.434e-05]
[1765996635409,2.5121,2851.3,2850.9,4.434e-05]
[1765996635724,0.46438023,2851.9,2851.1,3.53886252]
[1765996635725,4.71578023,2851.9,2851.1,3.53886252]
[1765996635925,4.71578023,2851.9,2851.4,4.434e-05]
[1765996635926,1.9541,2851.7,2851.4,4.434e-05]
[1765996636112,1.9541,2851.5,2851.1,0.03144434]
[1765996636306,1.9541,2851.5,2851.3,4.434e-05]
[1765996637535,4.2514,2851.5,2851.3,4.434e-05]
[1765996637836,1.9541,2851.4,2851.3,4.434e-05]
[1765996638534,0.46438023,2851.7,2851.3,4.434e-05]
[1765996638735,2.41848023,2851.7,2851.3,4.434e-05]
[1765996638949,2.2973,2851.6,2851.3,4.434e-05]
[1765996639140,1.9541,2851.3,2851.1,8.868e-05]
[1765996639438,0.62683644,2851.5,2850.9,4.434e-05]
[1765996639439,1.9541,2851.1,2850.9,4.434e-05]
[1765996640108,1.9541,2851.0,2850.9,4.434e-05]
[1765996642544,2.2973,2851.3,2850.7,0.03144434]
[1765996642759,1.9541,2851.1,2850.9,0.03144434]
[1765996642916,1.9541,2851.1,2850.5,0.03144434]
[1765996643123,1.9541,2850.9,2850.1,0.002]
[1765996643323,1.9541,2850.9,2850.5,2.2305]
[1765996643541,2.5121,2851.0,2850.5,2.2305]
[1765996643747,1.9541,2850.9,2850.2,2.2305]
[1765996643949,1.43610786,2851.0,2850.1,3.51060335]
[1765996643950,1.9541,2850.8,2850.1,3.51060335]
[1765996644147,1.9541,2850.7,2850.1,3.51060335]
[1765996644446,1.9541,2850.7,2850.1,5.74109607]
[1765996644629,1.9541,2850.6,2850.1,5.74109607]
[1765996644827,1.9541,2850.6,2850.2,3.50848712]
[1765996645344,1.9541,2850.6,2850.3,3.54183633]
[1765996645672,0.69902278,2851.3,2850.6,2.2305]
[1765996645821,0.69902278,2851.3,2850.5,0.03144434]
[1765996645822,1.9551,2851.5,2851.2,0.03144434]
[1765996646021,2.5141,2851.5,2851.2,0.03144434]
[1765996646472,0.001,2851.5,2851.4,0.03144434]
[1765996647140,1.9551,2851.5,2851.4,0.03144434]
[1765996648263,0.001,2851.5,2851.4,0.03144434]
[1765996648726,1.9551,2851.5,2851.4,0.03144434]
[1765996649055,1.9551,2851.5,2851.4,4.434e-05]
[1765996649256,4.2524,2851.5,2851.4,4.434e-05]
[1765996649423,1.9541,2851.4,2851.2,0.03144434]
[1765996649624,1.9541,2851.4,2851.0,0.03144434]
[1765996649854,1.9541,2851.4,2850.9,0.002]
[1765996649855,2.2973,2851.2,2850.9,4.434e-05]
[1765996650157,0.559,2851.3,2850.3,0.03344434]
[1765996650683,4.2514,2851.2,2850.3,0.03344434]
[1765996650894,0.48104,2851.1,2850.3,0.03344434]
[1765996651183,3.50748825,2851.1,2850.3,3.54182434]
[1765996651359,4.2514,2851.0,2850.3,3.54182434]
[1765996651559,2.2973,2850.8,2850.3,3.54182434]
[1765996651789,1.9541,2850.7,2850.3,3.54182434]
[1765996651953,1.9541,2850.7,2850.4,3.50827366]
[1765996652158,1.9541,2850.7,2850.3,3.54180617]
[1765996652482,1.9541,2850.7,2850.3,0.03344434]
[1765996652866,1.9541,2850.7,2850.5,4.434e-05]
[1765996653400,1.9541,2850.7,2850.3,4.434e-05]
[1765996653401,1.9541,2850.5,2850.3,4.434e-05]
[1765996656157,1.9541,2850.5,2850.1,0.03344434]
[1765996656502,0.558,2850.4,2850.3,0.03144434]
[1765996657493,0.48094,2850.7,2850.3,2.26194434]
[1765996657698,2.5121,2850.9,2850.5,0.03144434]
[1765996657915,2.80974802,2850.9,2850.7,0.03144434]
[1765996658223,1.9541,2851.4,2850.7,2.26194434]
[1765996658519,0.001,2851.5,2851.2,2.26194434]
[1765996658690,0.001,2852.0,2851.3,2.2305]
[1765996658896,1.9541,2851.9,2851.3,2.2305]
[1765996659080,2.50023537,2851.9,2851.3,2.2305]
[1765996659486,1.9541,2851.6,2851.2,4.434e-05]
[1765996659685,1.9541,2851.4,2851.0,0.03144434]
[1765996659911,1.9541,2851.3,2851.0,0.03144434]
[1765996660295,2.2973,2851.6,2851.2,0.03144434]
[1765996660494,2.2973,2851.5,2851.2,0.03144434]
[1765996660699,1.8375,2851.6,2851.0,0.03144434]
[1765996660908,1.8375,2851.3,2851.0,0.03144434]
[1765996662290,3.50724246,2851.3,2850.7,0.03144434]
[1765996662624,1.8375,2851.1,2850.7,0.03144434]
[1765996662834,1.8375,2851.1,2850.9,0.03144434]
[1765996663418,1.8375,2851.1,2850.7,0.03144434]
[1765996663617,1.8375,2850.9,2850.5,0.03144434]
[1765996663831,1.8375,2850.8,2850.5,0.03144434]
[1765996664008,2.23964,2850.8,2850.5,0.03144434]
[1765996664212,1.8375,2850.5,2850.1,4.434e-05]
[1765996664413,1.8375,2850.3,2850.1,4.434e-05]
[1765996665002,1.8375,2850.2,2849.9,0.03344434]
[1765996665429,1.8375,2850.2,2850.1,0.03144434]
[1765996666031,1.8375,2850.2,2849.9,0.03344434]
[1765996666232,0.46438023,2850.8,2850.1,2.33834434]
[1765996666454,1.8375,2850.7,2850.3,0.03144434]
[1765996666761,1.8375,2850.7,2850.1,2.33834434]
[1765996666963,1.8375,2850.7,2850.1,0.03144434]
[1765996667269,1.8375,2850.5,2850.1,0.03144434]
[1765996667772,1.8375,2850.5,2850.0,0.002]
[1765996667773,1.8375,2850.4,2850.0,0.002]
[1765996667937,1.8375,2850.2,2849.9,0.002]
[1765996668259,1.8375,2850.1,2849.8,0.002]
[1765996669343,7.01634647,2850.5,2849.8,0.002]
[1765996669344,1.8375,2850.4,2849.8,0.002]
[1765996669547,1.8375,2850.2,2849.8,0.002]
[1765996669780,1.8375,2850.0,2849.8,0.002]
[1765996670435,0.88543052,2850.1,2849.8,0.002]
[1765996670971,1.8375,2850.3,2849.9,0.03144434]
[1765996671331,2.1839,2850.3,2849.8,0.002]
[1765996671542,1.8375,2850.2,2849.8,0.002]
[1765996672332,5.34605153,2850.2,2849.8,0.002]
[1765996672558,3.50855153,2850.2,2849.8,0.002]
[1765996672966,3.97231339,2850.7,2849.8,0.23623443]
[1765996672967,2.1839,2850.7,2849.8,0.23623443]
[1765996673265,2.1839,2850.7,2849.8,0.002]
[1765996673266,2.64828023,2850.7,2849.8,0.002]
[1765996673635,2.1839,2850.5,2849.8,0.002]
[1765996673837,2.7429,2850.4,2849.8,0.002]
[1765996674053,0.559,2850.3,2849.8,0.002]
[1765996674338,2.7429,2850.3,2850.0,0.002]
[1765996674836,4.5804,2850.3,2850.0,0.002]
[1765996675033,0.559,2850.6,2850.0,0.002]
[1765996675360,0.46538023,2850.9,2850.0,0.002]
[1765996675567,0.559,2850.8,2850.0,0.002]
[1765996675778,1.8375,2850.5,2850.1,0.03144434]
[1765996675968,4.0214,2850.3,2850.1,4.434e-05]
[1765996676263,1.8375,2850.2,2850.0,0.002]
[1765996676466,2.7429,2850.4,2849.8,0.002]
[1765996676467,1.8375,2850.0,2849.8,0.002]
[1765996676673,4.0214,2850.1,2849.7,0.002]
[1765996677131,1.8375,2850.0,2849.7,0.002]
[1765996677332,2.1839,2850.3,2849.7,0.002]
[1765996677557,1.8375,2850.1,2849.7,0.002]
[1765996677757,4.0214,2850.1,2849.7,0.002]
[1765996678340,5.69264184,2850.1,2849.7,0.002]
[1765996678555,7.53014184,2850.1,2849.7,0.002]
[1765996678937,4.0214,2850.1,2849.7,0.002]
[1765996679439,7.53005201,2850.1,2849.7,0.002]
[1765996679670,5.69255201,2850.1,2849.7,0.002]
[1765996679969,2.1839,2849.7,2849.4,0.002]
[1765996680288,4.06782385,2850.0,2849.4,0.002]
[1765996680289,4.5804,2850.0,2849.4,0.002]
[1765996680489,0.46438023,2850.4,2849.9,0.03144434]
[1765996680651,0.46438023,2850.2,2849.9,0.03144434]
[1765996681055,0.46438023,2850.2,2849.7,4.434e-05]
[1765996681056,4.0214,2850.2,2849.7,4.434e-05]
[1765996681256,4.0214,2850.1,2849.5,0.03144434]
[1765996681454,0.50447802,2850.2,2849.4,4.434e-05]
[1765996681760,4.0214,2849.6,2849.4,4.434e-05]
[1765996682187,4.0214,2849.5,2849.4,4.434e-05]
[1765996682974,4.0214,2849.8,2849.4,4.434e-05]
[1765996683281,4.06794821,2849.9,2849.4,4.434e-05]
[1765996684001,4.06792274,2849.9,2849.4,4.434e-05]
[1765996684158,4.0214,2849.8,2849.4,4.434e-05]
[1765996684357,4.0214,2849.8,2849.5,0.03144434]
[1765996684787,1.8375,2849.7,2849.5,0.03144434]
[1765996685598,4.0214,2849.7,2849.5,0.03144434]
[1765996686603,2.1839,2849.7,2849.5,0.03144434]
[1765996686896,0.559,2849.9,2849.5,0.38869974]
[1765996687098,2.30188023,2850.1,2849.7,0.03144434]
[1765996687268,1.8375,2850.1,2849.7,0.03144434]
[1765996687470,4.0214,2850.1,2849.7,0.03144434]
[1765996688300,4.0214,2850.0,2849.7,0.03144434]
[1765996688501,4.0214,2849.9,2849.5,0.03144434]
[1765996688708,4.0214,2850.0,2849.5,0.03144434]
[1765996689030,4.0214,2850.1,2849.7,0.03144434]
[1765996689397,4.2187,2850.0,2849.7,0.03144434]
[1765996691312,1.02338023,2850.2,2849.7,0.03144434]
[1765996691506,3.02998023,2850.2,2849.7,0.03144434]
[1765996691720,2.0066,2850.1,2849.9,0.03144434]
[1765996692029,4.2893,2850.1,2849.9,0.03144434]
[1765996692338,0.001,2850.9,2849.9,0.03144434]
[1765996692499,0.001,2850.9,2850.5,0.03144434]
[1765996693209,2.2837,2850.9,2850.5,0.03144434]
[1765996693524,4.2893,2850.8,2850.5,0.03144434]
[1765996694232,2.0066,2850.8,2850.5,0.03144434]
[1765996694593,0.001,2850.9,2850.7,0.03144434]
[1765996697113,2.0066,2851.1,2850.7,0.03144434]
[1765996697312,2.0076,2851.4,2850.9,0.03144434]
[1765996697516,0.001,2851.4,2851.1,0.03144434]
[1765996697814,0.001,2852.0,2850.9,0.03144434]
[1765996697815,2.0076,2852.0,2851.2,0.13631729]
[1765996698016,2.0076,2852.0,2851.2,0.10124434]
[1765996698203,2.47198023,2852.0,2851.2,0.10124434]
[1765996698403,8.26103573,2852.0,2851.2,0.10124434]
[1765996698603,2.0066,2851.8,2851.6,0.03144434]
[1765996698836,2.0066,2851.8,2851.4,0.03144434]
[1765996699041,2.2827,2851.9,2851.4,0.03144434]
[1765996699335,2.2827,2851.9,2851.6,0.03144434]
[1765996699336,2.0066,2851.9,2851.6,0.03144434]
[1765996699538,0.001,2852.0,2851.8,0.03144434]
[1765996700443,0.001,2852.3,2851.9,0.0678]
[1765996700652,3.50557754,2852.6,2852.2,0.03144434]
[1765996700844,4.34106529,2852.6,2852.2,0.03144434]
[1765996701133,2.0066,2853.0,2852.5,0.03144434]
[1765996701335,2.2827,2852.9,2852.5,0.03144434]
[1765996701637,2.2827,2852.9,2851.8,0.03144434]
[1765996701638,2.0066,2852.2,2851.6,0.03144434]
[1765996701854,0.559,2852.1,2851.6,0.03144434]
[1765996702329,4.2893,2852.0,2851.6,0.03144434]
[1765996702522,2.0066,2851.9,2851.6,0.03144434]
[1765996703347,2.0066,2852.0,2851.6,0.03144434]
[1765996703652,0.001,2851.9,2851.6,0.03144434]
[1765996704427,2.0066,2851.7,2851.2,3.53864188]
[1765996704627,2.0066,2851.5,2851.2,0.03144434]
[1765996705050,2.5656,2851.6,2851.2,0.03144434]
[1765996705258,0.559,2851.6,2851.2,0.03144434]
[1765996705554,0.559,2851.6,2850.9,3.63826978]
[1765996705555,2.2827,2851.4,2850.9,0.03144434]
[1765996705742,2.2827,2851.3,2850.7,0.03144434]
[1765996705938,2.5656,2851.2,2850.9,0.03144434]
[1765996706142,2.5656,2851.2,2850.7,3.53934853]
[1765996706562,0.559,2851.2,2850.9,0.03144434]
[1765996707035,0.559,2851.2,2850.9,3.53910544]
[1765996707223,0.559,2851.2,2850.9,0.03144434]
[1765996707420,4.2893,2851.1,2850.7,0.03144434]
[1765996707626,2.2827,2851.1,2850.7,0.03144434]
[1765996707845,2.2827,2850.8,2850.5,0.03144434]
[1765996708130,0.558,2850.7,2850.5,3.53957746]
[1765996708525,0.558,2850.7,2850.5,0.03144434]
[1765996708834,0.558,2850.7,2850.5,3.53959604]
[1765996709234,0.558,2850.7,2850.5,0.03144434]
[1765996709454,0.558,2850.7,2850.5,3.53957246]
[1765996710022,0.4587,2850.7,2850.5,3.53957246]
[1765996710225,0.558,2851.0,2850.5,3.53957246]
[1765996710477,4.8473,2851.0,2850.7,0.03144434]
[1765996710769,2.5646,2851.0,2850.9,0.002]
[1765996711548,0.46438023,2851.7,2850.9,0.002]
[1765996711753,4.8473,2851.6,2850.9,0.002]
[1765996711956,4.8473,2851.6,2851.0,0.03144434]
[1765996712159,6.07977947,2851.6,2851.0,0.03144434]
[1765996712649,2.2827,2851.4,2851.0,0.03144434]
[1765996712854,2.0066,2851.4,2851.0,0.03144434]
[1765996713050,4.2893,2851.4,2851.0,0.03144434]
[1765996713388,2.0066,2851.0,2850.9,0.002]
[1765996713554,4.2893,2850.9,2850.7,0.03144434]
[1765996713745,3.50725452,2851.3,2850.7,0.03144434]
[1765996713746,0.558,2851.1,2850.7,0.03144434]
[1765996713950,4.8473,2851.1,2850.7,0.03144434]
[1765996714186,4.8473,2851.1,2850.5,3.53959501]
[1765996714472,2.5646,2851.1,2850.7,0.03144434]
[1765996714773,2.5646,2851.1,2850.7,3.53932782]
[1765996714949,0.558,2851.1,2850.9,0.03144434]
[1765996715347,0.558,2851.3,2850.9,3.5390118]
[1765996715657,0.558,2851.3,2850.9,0.03144434]
[1765996716657,0.558,2851.3,2851.1,0.03144434]
[1765996717376,2.47098023,2851.8,2851.1,4.24659016]
[1765996717377,0.558,2851.7,2851.1,4.24659016]
[1765996717578,0.558,2851.7,2851.3,0.03144434]
[1765996717876,0.558,2851.8,2851.3,0.03144434]
[1765996718086,0.558,2851.8,2851.5,0.03144434]
[1765996718261,0.001,2851.9,2851.5,0.03144434]
[1765996719218,2.2827,2851.6,2851.3,0.03144434]
[1765996719489,2.2827,2851.6,2851.1,1.29725989]
[1765996719490,4.2893,2851.3,2851.1,0.03144434]
[1765996719662,2.0066,2851.1,2850.7,0.03144434]
[1765996719864,4.2893,2851.0,2850.7,0.03144434]
[1765996720264,4.8473,2851.3,2850.7,0.03144434]
[1765996720858,4.8473,2851.3,2850.7,3.53933571]
[1765996721059,0.558,2851.3,2850.9,0.03144434]
[1765996721596,0.46538023,2851.9,2851.1,0.03144434]
[1765996721597,0.001,2851.9,2851.1,0.03144434]
[1765996721760,0.001,2851.9,2851.3,0.03144434]
[1765996721761,0.559,2851.9,2851.3,0.03144434]
[1765996722253,4.06544893,2851.9,2851.3,0.03144434]
[1765996722587,7.57189786,2851.9,2851.3,0.03144434]
[1765996722786,7.57189786,2851.9,2851.1,0.03144434]
[1765996722787,8.37552567,2851.9,2851.1,0.03144434]
[1765996723085,3.9848,2851.8,2851.1,0.03144434]
[1765996723381,3.50668022,2851.7,2851.1,0.03144434]
[1765996723587,3.9848,2851.7,2851.1,0.03144434]
[1765996723783,3.9848,2851.7,2851.1,3.5388612]
[1765996723983,5.89445793,2851.9,2851.3,0.03144434]
[1765996725055,8.05025793,2851.9,2851.3,0.03144434]
[1765996725254,0.558,2851.8,2851.3,0.03144434]
[1765996725456,4.5428,2851.8,2851.5,0.03144434]